bitfinex/quotes_ETHUSD_20250130
["timestamp","ask_amount","ask_price","bid_price","bid_amount"]
[1738246692169,3.06977,3257.6,3257.0,0.55]
[1738246692403,3.06957,3257.8,3257.0,0.55]
[1738246692604,3.06948,3257.9,3257.3,3.07002]
[1738246692766,0.1,3257.7,3257.1,0.55]
[1738246692965,0.03837202,3257.9,3257.1,0.55]
[1738246692966,3.17003,3257.3,3257.1,0.55]
[1738246693198,3.16985,3257.5,3256.7,3.07057]
[1738246693367,3.16985,3257.5,3257.0,0.55]
[1738246693562,3.06967,3257.7,3257.0,0.55]
[1738246693782,0.1,3258.0,3257.3,0.55]
[1738246694006,0.1,3258.0,3257.5,0.55]
[1738246694209,3.06956,3257.8,3257.3,0.55]
[1738246694514,3.16941,3258.0,3257.3,0.55]
[1738246694672,3.16941,3258.0,3257.5,0.55]
[1738246694873,3.16918,3258.2,3257.5,3.61983]
[1738246695170,0.1,3258.1,3257.7,0.55]
[1738246695506,3.06968,3257.7,3257.0,3.07028]
[1738246695809,0.1,3257.8,3257.3,3.61996]
[1738246696215,3.06919,3258.2,3257.6,3.06974]
[1738246696383,3.06919,3258.2,3257.4,0.55]
[1738246696384,0.1,3258.3,3257.9,0.55]
[1738246696606,0.1,3258.0,3257.9,0.55]
[1738246696806,3.06957,3257.8,3257.2,3.0]
[1738246696989,3.16936,3258.0,3257.3,3.61993]
[1738246697338,0.1,3257.9,3257.5,0.55]
[1738246697900,3.16946,3257.9,3257.5,0.55]
[1738246698092,0.1,3257.1,3256.8,0.7895]
[1738246698288,0.1,3257.1,3256.3,4.00854179]
[1738246698289,3.07033,3257.0,3256.3,7.85340179]
[1738246698488,3.07028,3257.1,3256.6,3.07066]
[1738246698718,3.06997,3257.4,3256.8,3.07048]
[1738246698939,0.1,3257.5,3256.9,0.55]
[1738246699244,3.16927,3258.1,3257.4,0.55]
[1738246699547,3.06945,3258.0,3257.4,0.55]
[1738246699693,0.1,3257.6,3257.4,0.55]
[1738246699889,3.06983,3257.5,3257.3,0.55]
[1738246700138,0.1,3256.9,3256.5,3.07071]
[1738246700354,0.1,3256.9,3256.3,4.00854179]
[1738246700355,0.1,3256.9,3256.3,7.07942179]
[1738246700640,0.1,3256.9,3256.4,0.55]
[1738246700808,3.17043,3256.9,3256.4,0.55]
[1738246701007,3.17043,3256.9,3256.3,3.47820159]
[1738246701213,0.1,3256.9,3256.4,3.07085]
[1738246701834,0.1,3256.4,3255.8,3.47820159]
[1738246701997,3.07078,3256.5,3255.9,3.07134]
[1738246702195,0.1,3256.6,3256.0,3.07118]
[1738246702441,0.1,3256.6,3256.1,0.55]
[1738246702640,3.1707,3256.6,3256.1,0.55]
[1738246702840,3.17057,3256.8,3256.2,0.55]
[1738246703137,3.17033,3257.0,3256.5,0.55]
[1738246703621,3.07013,3257.2,3256.5,0.55]
[1738246703622,3.07004,3257.3,3256.8,0.55]
[1738246704023,0.1,3256.4,3255.7,4.018402]
[1738246704195,3.17076,3256.6,3255.9,3.07133]
[1738246704403,3.17076,3256.6,3256.0,0.55]
[1738246704608,3.17076,3256.6,3255.9,3.07133]
[1738246704949,3.17076,3256.6,3256.1,0.55]
[1738246705102,0.1,3256.6,3256.0,0.55]
[1738246705296,0.1,3256.6,3255.8,3.0]
[1738246705297,3.07079,3256.5,3255.8,3.0]
[1738246705602,3.17079,3256.5,3255.9,3.07129]
[1738246705948,3.17023,3257.1,3256.2,0.55]
[1738246706131,0.7632,3257.6,3255.6,4.018402]
[1738246706132,0.1,3256.6,3255.6,4.018402]
[1738246706437,0.7632,3257.6,3255.6,4.018402]
[1738246706438,3.17052,3256.8,3256.1,0.55]
[1738246706598,3.07061,3256.7,3256.1,0.55]
[1738246707257,3.07074,3256.6,3256.1,0.55]
[1738246707541,0.1,3256.1,3255.7,3.0]
[1738246707745,0.0383837,3256.5,3255.5,0.7821]
[1738246707746,0.1,3256.3,3255.5,0.7821]
[1738246707949,0.1,3256.3,3256.0,0.55]
[1738246708158,0.1,3255.8,3255.3,0.27674455]
[1738246708302,0.1,3255.6,3255.3,0.27674455]
[1738246708502,0.1,3255.6,3255.4,0.55]
[1738246708740,3.17181,3255.4,3255.3,0.27674455]
[1738246709415,0.1,3255.4,3255.3,0.27674455]
[1738246709809,0.1,3254.7,3253.7,0.7762]
[1738246710035,0.1,3254.7,3253.8,3.07327]
[1738246710242,0.1,3254.7,3254.3,3.07284]
[1738246710445,0.1,3254.7,3254.2,3.0]
[1738246710806,0.1,3254.7,3254.2,6.07294]
[1738246711149,0.1,3255.2,3254.4,3.08026]
[1738246711320,0.1,3255.4,3255.0,0.55]
[1738246711848,3.17189,3255.4,3254.8,3.0]
[1738246712061,0.1,3255.4,3254.8,3.0]
[1738246712420,0.1,3255.4,3255.0,0.55]
[1738246712940,0.1,3255.6,3255.0,0.55]
[1738246713140,0.1,3255.6,3255.2,0.55]
[1738246713528,3.07129,3256.0,3255.4,0.55]
[1738246713764,0.1,3256.0,3255.4,0.55]
[1738246714057,0.1,3256.0,3255.6,0.55]
[1738246714465,0.1,3256.0,3255.6,3.62156]
[1738246714616,0.1,3256.0,3255.6,0.55]
[1738246714813,0.1,3256.2,3255.7,3.07147]
[1738246715020,0.1,3256.2,3255.9,0.55]
[1738246715414,0.1,3256.2,3255.7,0.55]
[1738246715415,3.17108,3256.2,3255.7,0.55]
[1738246715673,3.07116,3256.1,3255.7,0.55]
[1738246715849,3.07116,3256.1,3255.6,0.55]
[1738246716423,0.1,3256.2,3255.7,3.07152]
[1738246717064,0.1,3256.2,3255.6,0.55]
[1738246717065,0.1,3256.2,3255.6,3.62162]
[1738246717364,0.1,3256.2,3255.7,3.07151]
[1738246719423,0.1,3256.2,3255.9,0.55]
[1738246720058,0.1,3256.4,3255.9,0.55]
[1738246720260,0.1,3256.7,3256.3,3.07088]
[1738246720443,0.1,3256.9,3256.4,3.62085]
[1738246721165,0.1,3256.7,3256.4,3.62085]
[1738246721374,0.1,3257.0,3256.7,0.55]
[1738246721723,0.1,3257.0,3256.6,3.07067]
[1738246721924,0.1,3256.5,3256.1,3.07108]
[1738246722222,0.1,3256.5,3256.2,3.62104]
[1738246722455,0.1,3256.9,3256.4,0.55]
[1738246722661,0.1,3256.9,3256.5,3.07074]
[1738246723027,0.1,3256.9,3256.7,0.55]
[1738246723222,0.1,3257.3,3256.9,0.55]
[1738246723460,0.1,3257.3,3256.8,0.55]
[1738246723627,3.1701,3257.3,3256.8,0.55]
[1738246723823,0.1,3257.3,3256.8,3.62043]
[1738246724765,3.17011,3257.3,3256.7,0.55]
[1738246724971,3.07015,3257.2,3256.7,0.55]
[1738246725377,3.07015,3257.2,3256.5,3.07074]
[1738246725378,0.1,3256.9,3256.5,3.07074]
[1738246725954,0.1,3256.9,3256.6,0.55]
[1738246726138,0.1,3257.1,3256.6,3.62062]
[1738246726343,0.1,3257.4,3256.6,3.62062]
[1738246726558,0.1,3257.4,3256.9,0.55]
[1738246726731,3.16996,3257.4,3256.7,3.6205]
[1738246726927,3.16996,3257.4,3256.9,0.55]
[1738246727443,0.1,3257.4,3256.9,3.62035]
[1738246727645,3.16995,3257.4,3256.9,0.55]
[1738246728364,0.1,3257.0,3256.9,0.55]
[1738246728562,0.1,3257.0,3256.5,3.07069]
[1738246728821,0.1,3257.0,3256.6,0.55]
[1738246730009,3.8444,3257.7,3256.5,0.55]
[1738246730010,0.1,3257.2,3256.5,0.55]
[1738246730221,0.1,3257.2,3257.0,0.55]
[1738246730385,3.17012,3257.2,3257.0,0.55]
[1738246732607,3.07021,3257.1,3257.0,0.55]
[1738246732812,0.1,3256.9,3256.4,3.07086]
[1738246733029,0.1,3256.9,3256.6,0.55]
[1738246734237,0.1,3257.1,3256.8,0.55]
[1738246734516,0.1,3257.1,3257.0,0.55]
[1738246734715,0.1,3257.1,3256.8,0.55]
[1738246737635,0.1,3256.9,3256.8,0.55]
[1738246738286,0.1,3256.9,3255.7,3.3062]
[1738246738287,0.1,3256.5,3256.2,3.0]
[1738246738488,0.1,3256.3,3255.9,3.07132]
[1738246738716,0.1,3256.3,3255.7,3.82469]
[1738246738917,0.1,3256.3,3255.9,3.07129]
[1738246739183,0.1,3256.5,3256.1,0.55]
[1738246739391,0.1,3256.5,3256.3,0.55]
[1738246740037,0.9241,3256.9,3256.4,0.55]
[1738246740234,0.1,3256.9,3256.5,3.07072]
[1738246740540,0.1,3256.9,3256.7,0.55]
[1738246743032,0.1,3256.9,3256.7,3.62058]
[1738246743243,0.1,3257.1,3256.9,0.55]
[1738246743420,0.1,3257.1,3256.9,3.62034]
[1738246744040,0.1,3257.1,3256.9,0.55]
[1738246744548,0.1,3257.1,3256.9,3.62033]
[1738246744711,0.1,3257.4,3257.1,3.07019]
[1738246745041,0.1,3257.4,3257.2,0.55]
[1738246745202,0.1,3257.1,3256.6,3.07064]
[1738246745410,0.1,3257.1,3256.8,3.07047]
[1738246745745,0.1,3256.9,3256.5,3.83135]
[1738246745898,0.1,3256.9,3256.5,6.90205]
[1738246746099,0.1,3257.1,3256.6,3.55]
[1738246746433,0.1,3256.9,3256.7,3.07057]
[1738246746805,0.1,3256.9,3256.6,3.55]
[1738246746954,0.1,3256.9,3256.6,0.55]
[1738246747382,0.1,3256.7,3254.3,0.7851]
[1738246747664,0.8173,3256.8,3253.6,1.57137147]
[1738246747665,3.07285,3254.4,3253.9,0.7851]
[1738246747808,0.8173,3254.9,3253.6,0.34321078]
[1738246747809,0.1,3254.3,3253.6,0.34321078]
[1738246748013,0.1,3254.1,3253.6,0.34321078]
[1738246748313,0.1,3255.0,3254.6,3.07254]
[1738246748745,0.1,3255.0,3254.4,0.7598]
[1738246748746,0.1,3255.0,3254.4,3.83254]
[1738246748950,0.1,3255.0,3254.5,0.383254]
[1738246749325,0.1,3255.0,3254.6,0.55]
[1738246750354,0.1,3255.0,3254.1,3.07303]
[1738246750355,0.1,3254.0,3253.5,1.57610323]
[1738246750580,6.66150332,3253.6,3253.5,3.23e-06]
[1738246750727,4.14700033,3253.6,3253.5,3.23e-06]
[1738246751070,3.17351,3253.6,3253.5,3.23e-06]
[1738246751223,3.21193698,3253.6,3253.5,3.23e-06]
[1738246751426,0.1,3253.5,3252.8,0.0075]
[1738246751734,0.1,3253.5,3252.9,3.0741]
[1738246752126,0.1,3253.5,3253.1,0.55]
[1738246752326,0.1,3253.7,3253.3,0.55]
[1738246752639,0.1,3253.7,3253.3,3.55]
[1738246752842,0.1,3253.7,3253.3,0.55]
[1738246753736,0.1,3253.7,3253.3,3.62378]
[1738246754068,0.1,3253.7,3253.5,0.55]
[1738246755562,0.1,3253.7,3253.4,3.55]
[1738246756173,0.1,3253.7,3253.4,3.62362]
[1738246756738,0.1,3253.5,3253.2,0.362405]
[1738246757077,0.1,3253.5,3253.3,3.0]
[1738246757243,0.1,3253.5,3253.2,0.55]
[1738246757572,0.1,3253.5,3253.2,3.55]
[1738246758145,0.1,3253.5,3252.6,0.60522179]
[1738246758146,0.1,3252.4,3250.7,0.7866]
[1738246758349,7.46993332,3252.2,3250.7,0.7866]
[1738246758674,8.52824225,3252.2,3250.7,3.86285]
[1738246759047,8.52824225,3252.2,3250.7,3.86283]
[1738246759370,0.1,3250.9,3250.3,0.7897]
[1738246759576,0.1,3250.9,3250.4,3.07651]
[1738246759755,0.1,3250.9,3250.7,3.07624]
[1738246759957,0.1,3251.6,3251.4,3.07559]
[1738246760184,0.1,3251.8,3251.4,3.383149]
[1738246760339,0.1,3251.6,3251.5,0.55]
[1738246760546,0.1,3252.0,3251.9,0.55]
[1738246760885,0.1,3252.2,3251.9,3.07512]
[1738246761085,0.1,3252.0,3251.9,3.62512]
[1738246761289,0.1,3252.2,3251.9,0.55]
[1738246761496,0.1,3252.2,3252.0,0.55]
[1738246764063,0.7653,3252.1,3250.7,0.61582033]
[1738246764280,3.48799332,3253.1,3250.1,0.1659724]
[1738246764281,3.94203,3250.2,3250.1,0.1659724]
[1738246764459,0.1,3250.2,3250.1,0.1659724]
[1738246765994,0.1,3250.4,3250.1,3.2427224]
[1738246766182,0.1,3250.4,3250.2,3.62669]
[1738246767898,0.1,3250.8,3250.6,3.07633]
[1738246768084,0.1,3250.8,3250.4,3.0765]
[1738246768285,0.1,3250.8,3249.1,4.2349305]
[1738246768286,0.1,3248.5,3247.4,1.23217]
[1738246768504,0.2,3250.5,3248.6,3.07824]
[1738246768505,0.1,3248.7,3248.6,3.07824]
[1738246768708,0.1,3248.9,3248.7,3.07809]
[1738246768916,3.07717,3249.8,3248.8,3.07805]
[1738246768917,0.1,3249.1,3248.8,3.07805]
[1738246769114,0.1,3249.1,3248.9,3.07794]
[1738246769366,0.1,3249.0,3248.0,0.8207]
[1738246769541,0.1,3249.2,3249.0,3.07781]
[1738246769905,0.1,3249.4,3248.4,0.015]
[1738246770093,0.1,3249.4,3249.1,3.07777]
[1738246770287,0.1,3249.4,3249.2,3.07768]
[1738246770636,0.1,3249.4,3249.3,3.62758]
[1738246770835,0.1,3249.6,3249.0,0.8274]
[1738246771017,0.1,3249.6,3249.4,0.55]
[1738246771332,0.1,3249.6,3249.5,3.62739]
[1738246771544,0.1,3249.6,3249.5,0.55]
[1738246773319,0.1,3249.8,3249.5,0.55]
[1738246773736,0.1,3249.8,3249.5,3.62739]
[1738246774745,0.1,3249.8,3249.6,0.55]
[1738246774950,0.1,3250.2,3249.7,3.6272]
[1738246775116,0.1,3250.2,3250.0,3.07688]
[1738246775639,0.1,3250.4,3250.3,3.07663]
[1738246775833,0.1,3250.4,3250.3,3.62663]
[1738246776340,0.1,3250.6,3250.5,3.07644]
[1738246776543,0.1,3250.6,3250.5,3.62644]
[1738246776918,0.1,3250.6,3250.5,6.62644]
[1738246777248,0.1,3250.8,3250.6,3.62631]
[1738246777450,0.1,3250.8,3250.6,0.55]
[1738246777821,0.1,3250.8,3250.5,6.07644]
[1738246777822,0.1,3250.8,3250.7,3.62626]
[1738246780716,0.7836,3251.4,3250.7,3.62626]
[1738246780717,0.1,3251.1,3251.0,3.07597]
[1738246780947,0.1,3251.1,3251.0,6.62597]
[1738246783325,3.82632,3251.8,3251.1,3.62579]
[1738246783859,3.82632,3251.8,3251.2,3.0757]
[1738246784031,0.7511,3251.8,3251.3,3.07567]
[1738246784927,3.07505,3252.0,3251.3,3.07567]
[1738246785363,3.84386,3252.2,3251.4,0.55]
[1738246785868,3.11310875,3252.4,3249.5,3.440039]
[1738246785869,0.7541,3251.7,3249.5,3.440039]
[1738246786163,4.0424305,3252.0,3249.5,3.440039]
[1738246786164,3.07688,3250.1,3249.5,0.362739]
[1738246786318,0.7541,3250.4,3249.5,0.362739]
[1738246786516,3.83066,3250.4,3249.6,3.0]
[1738246786722,0.7541,3250.4,3249.4,3.0]
[1738246786923,3.07663,3250.3,3249.2,0.0075]
[1738246787123,3.07663,3250.3,3249.7,0.55]
[1738246787324,3.07663,3250.3,3249.6,3.07729]
[1738246787979,3.07674,3250.2,3249.6,3.07729]
[1738246788272,3.07663,3250.3,3249.7,0.55]
[1738246789972,3.07674,3250.2,3249.7,0.55]
[1738246791527,3.07663,3250.3,3249.7,0.55]
[1738246791862,0.7541,3250.4,3249.9,0.55]
[1738246792063,3.07664,3250.3,3249.7,0.55]
[1738246792268,3.07664,3250.3,3249.7,3.62719]
[1738246792671,0.7541,3250.4,3249.5,0.55]
[1738246792870,3.07629,3250.7,3250.1,0.55]
[1738246793044,3.07636,3250.6,3250.1,0.55]
[1738246793245,3.07646,3250.5,3249.9,0.55]
[1738246793444,3.07646,3250.5,3249.9,3.62699]
[1738246794129,3.07646,3250.5,3249.9,3.07701]
[1738246794330,3.07646,3250.5,3249.5,0.55]
[1738246794668,3.07708,3249.9,3249.2,3.07761]
[1738246794843,3.07717,3249.8,3249.3,3.0]
[1738246795485,3.0767,3250.3,3249.6,3.07721]
[1738246796266,3.0767,3250.3,3249.7,3.07718]
[1738246796770,3.0767,3250.3,3249.7,3.07717]
[1738246796974,3.07671,3250.3,3249.6,3.07721]
[1738246797175,3.07673,3250.2,3249.6,3.07721]
[1738246797981,3.07708,3249.9,3249.2,3.07762]
[1738246798133,3.07709,3249.9,3249.2,3.07762]
[1738246799135,3.077,3250.0,3249.3,0.55]
[1738246799335,3.077,3250.0,3249.4,3.07745]
[1738246800554,3.07674,3250.2,3249.7,3.07719]
[1738246800884,3.07657,3250.4,3249.7,3.07719]
[1738246801070,3.07657,3250.4,3249.8,3.07706]
[1738246801266,3.07657,3250.4,3249.7,3.07719]
[1738246801590,3.07657,3250.4,3249.8,3.07711]
[1738246802188,0.7521,3250.5,3249.9,3.077]
[1738246802399,0.384386,3252.1,3250.4,3.07652]
[1738246802400,0.7568,3250.9,3250.4,3.07652]
[1738246802696,3.07598,3251.0,3250.4,3.07652]
[1738246803396,3.07594,3251.1,3250.4,3.07652]
[1738246803689,3.07607,3250.9,3250.4,3.07646]
[1738246803851,3.07594,3251.1,3250.5,3.07644]
[1738246804642,3.076,3251.0,3250.5,3.07644]
[1738246804946,0.79524984,3251.3,3250.3,0.7572]
[1738246805172,3.07613,3250.9,3250.3,0.7572]
[1738246805576,3.07613,3250.9,3250.2,3.07667]
[1738246805764,3.07642,3250.6,3250.0,3.07687]
[1738246805970,3.11469368,3250.8,3249.6,3.0773]
[1738246806287,3.07617,3250.8,3250.1,3.07677]
[1738246806460,3.07617,3250.8,3250.2,3.07671]
[1738246807055,3.07602,3251.0,3250.3,3.07656]
[1738246807344,3.07602,3251.0,3250.2,3.07671]
[1738246807345,3.07602,3251.0,3250.4,3.07648]
[1738246807499,3.49368322,3251.7,3250.4,3.07648]
[1738246807500,3.07567,3251.4,3250.7,3.07624]
[1738246807706,3.07567,3251.4,3250.7,3.07619]
[1738246808001,4.25888322,3251.7,3250.9,3.07598]
[1738246808002,3.07545,3251.6,3250.9,3.07598]
[1738246808200,3.07545,3251.6,3251.0,3.07589]
[1738246808433,3.07557,3251.5,3250.5,0.55]
[1738246808623,3.07545,3251.6,3250.4,1.139048]
[1738246808624,3.0756,3251.4,3250.8,3.07613]
[1738246809002,3.07545,3251.6,3250.8,3.07613]
[1738246809203,3.07545,3251.6,3250.9,3.07601]
[1738246809702,3.07552,3251.5,3250.9,3.07601]
[1738246809944,0.7652,3251.7,3251.1,3.07587]
[1738246810147,3.07523,3251.8,3251.1,3.07587]
[1738246810345,3.07523,3251.8,3251.3,3.07566]
[1738246811448,3.86055,3252.1,3251.5,3.0755]
[1738246811650,3.07485,3252.2,3251.5,3.0755]
[1738246812010,3.07504,3252.0,3251.5,3.0755]
[1738246812958,3.07485,3252.2,3251.5,3.0755]
[1738246813260,3.07485,3252.2,3251.6,3.07539]
[1738246813456,3.07495,3252.1,3251.3,3.87375]
[1738246813614,3.07495,3252.1,3251.5,3.0755]
[1738246813816,6.14995,3252.1,3251.5,3.0755]
[1738246814127,3.07495,3252.1,3251.5,3.0755]
[1738246815744,3.07503,3252.0,3251.5,3.0755]
[1738246815921,3.07495,3252.1,3251.5,3.0755]
[1738246816475,3.69376488,3252.1,3251.5,3.0755]
[1738246816674,3.07495,3252.1,3251.5,3.07548]
[1738246816981,3.07495,3252.1,3251.5,3.07543]
[1738246817340,3.07475,3252.3,3251.6,3.07535]
[1738246817673,3.07488,3252.2,3251.6,3.07535]
[1738246821264,3.075,3252.1,3251.4,3.07558]
[1738246821476,3.075,3252.1,3251.5,3.07548]
[1738246823623,3.07466,3252.4,3251.8,3.07514]
[1738246823907,3.07434,3252.8,3252.2,3.07481]
[1738246824413,3.85072,3253.0,3252.4,3.07464]
[1738246824704,3.85072,3253.0,3251.9,0.8]
[1738246824705,3.07455,3252.6,3251.6,3.07538]
[1738246825007,3.07455,3252.6,3251.9,3.07512]
[1738246825008,3.07471,3252.4,3251.9,3.07512]
[1738246825162,3.07475,3252.3,3251.8,0.55]
[1738246825361,3.07471,3252.4,3251.8,0.55]
[1738246825362,3.07471,3252.4,3251.8,3.62521]
[1738246826707,0.03843557,3252.5,3251.6,0.55]
[1738246826872,3.07449,3252.6,3252.0,3.07496]
[1738246827205,3.07449,3252.6,3252.1,0.55]
[1738246827406,3.07449,3252.6,3252.1,3.62492]
[1738246827762,3.07427,3252.8,3252.1,0.55]
[1738246828103,0.7766,3253.0,3251.8,0.5575]
[1738246828269,3.07423,3252.9,3252.3,3.07472]
[1738246828471,3.07423,3252.9,3252.3,3.07467]
[1738246829106,3.07423,3252.9,3252.4,3.07464]
[1738246829464,3.07423,3252.9,3252.3,0.55]
[1738246829861,3.07423,3252.9,3252.4,3.07465]
[1738246830174,0.7766,3253.0,3252.3,0.55]
[1738246830175,3.85069,3253.0,3252.3,0.55]
[1738246830465,0.03842693,3252.9,3252.1,3.0749]
[1738246830666,3.85073,3253.0,3252.4,3.07463]
[1738246831301,3.07419,3252.9,3252.2,0.55]
[1738246831506,3.07419,3252.9,3252.2,3.62476]
[1738246831806,3.07419,3252.9,3252.3,3.07472]
[1738246831972,3.85073,3253.0,3252.4,3.62464]
[1738246832183,3.85073,3253.0,3252.4,3.68764441]
[1738246832378,3.85073,3253.0,3252.4,0.61300441]
[1738246832695,3.85073,3253.0,3252.4,3.68758441]
[1738246833297,3.07413,3253.0,3252.5,3.07455]
[1738246833496,3.07413,3253.0,3252.5,3.14345521]
[1738246833894,3.07418,3252.9,3252.5,0.06890521]
[1738246834207,3.07428,3252.8,3252.5,0.06890521]
[1738246834892,3.07413,3253.0,3252.5,0.06890521]
[1738246835311,3.07418,3252.9,3252.5,0.06890521]
[1738246835806,3.07413,3253.0,3252.5,0.06890521]
[1738246835979,3.07427,3252.8,3252.5,0.06890521]
[1738246836583,3.07438,3252.7,3252.5,0.06890521]
[1738246836780,3.11288949,3252.6,3252.5,0.06890521]
[1738246836980,3.07472,3252.4,3251.9,0.7693]
[1738246837316,3.07433,3252.8,3252.2,3.07482]
[1738246837609,3.07433,3252.8,3252.1,3.07492]
[1738246837808,3.07443,3252.7,3252.3,0.06874332]
[1738246838116,3.07443,3252.7,3252.4,0.06870121]
[1738246838271,3.07426,3252.9,3252.3,0.55]
[1738246838604,3.07412,3253.0,3252.5,0.06865911]
[1738246838605,3.07431,3252.8,3252.5,0.06865911]
[1738246838766,3.07444,3252.7,3252.4,0.06870121]
[1738246838965,3.07444,3252.7,3252.6,0.06861701]
[1738246839311,3.07419,3252.9,3252.6,0.06861701]
[1738246839515,3.07409,3253.0,3252.2,3.0748]
[1738246839809,3.07409,3253.0,3252.7,0.06857491]
[1738246840016,3.07393,3253.2,3252.7,0.55]
[1738246840165,3.07373,3253.4,3252.9,3.62417]
[1738246840570,3.07373,3253.4,3253.0,0.06845785]
[1738246840798,3.07352,3253.6,3253.0,0.06845785]
[1738246840972,6.14712,3253.6,3253.0,3.14252785]
[1738246841313,3.07352,3253.6,3253.1,0.55]
[1738246841468,3.07352,3253.6,3253.1,0.61841576]
[1738246841866,0.8154,3253.7,3253.1,0.06841576]
[1738246842065,0.8326,3253.1,3252.1,0.7591]
[1738246842270,0.8326,3253.1,3251.8,3.07513]
[1738246842271,3.07462,3252.5,3251.8,3.07513]
[1738246842481,3.07462,3252.5,3252.2,0.06185869]
[1738246842774,3.07462,3252.5,3252.0,0.55]
[1738246842965,3.07462,3252.5,3252.3,0.05958329]
[1738246843184,3.07462,3252.5,3251.9,3.0751]
[1738246843396,3.07462,3252.5,3252.4,0.05917205]
[1738246843568,3.07439,3252.7,3252.1,0.55]
[1738246843787,3.0742,3252.9,3252.4,0.05917205]
[1738246844093,3.0742,3252.9,3252.5,0.05931711]
[1738246844265,3.07428,3252.8,3252.3,3.07468]
[1738246844469,3.07428,3252.8,3252.4,0.05935921]
[1738246844922,3.07428,3252.8,3252.1,3.62485]
[1738246845124,3.07409,3253.0,3252.5,0.05931711]
[1738246845346,3.07409,3253.0,3252.4,3.07462]
[1738246845488,3.07409,3253.0,3252.6,0.05927501]
[1738246845684,3.07409,3253.0,3252.2,0.8326]
[1738246845685,3.07426,3252.9,3252.3,3.07473]
[1738246845886,3.07426,3252.9,3252.7,0.05923291]
[1738246846088,3.07426,3252.9,3252.4,0.55]
[1738246846288,3.07426,3252.9,3252.8,0.05919081]
[1738246846511,3.07426,3252.9,3252.4,0.55]
[1738246846512,3.07409,3253.0,3252.4,3.62464]
[1738246846717,3.07391,3253.2,3252.8,0.05919081]
[1738246846932,3.07399,3253.1,3252.5,3.0745]
[1738246847135,3.07399,3253.1,3252.9,0.05914872]
[1738246847426,3.07399,3253.1,3252.5,3.0745]
[1738246847617,3.07399,3253.1,3253.0,0.05910663]
[1738246847816,3.07399,3253.1,3252.6,3.62442]
[1738246848013,3.07375,3253.4,3253.0,0.05910663]
[1738246848014,3.07385,3253.3,3253.0,0.05910663]
[1738246848214,3.07385,3253.3,3252.7,3.07433]
[1738246848426,3.07385,3253.3,3253.1,0.05906454]
[1738246848627,3.07385,3253.3,3252.7,3.07433]
[1738246848817,3.07385,3253.3,3253.2,0.05902245]
[1738246849026,3.07385,3253.3,3252.7,3.07433]
[1738246849219,3.07385,3253.3,3253.2,0.05902245]
[1738246849433,3.07385,3253.3,3252.8,3.62426]
[1738246849635,3.07385,3253.3,3253.2,0.05902245]
[1738246849835,3.07385,3253.3,3252.9,0.55]
[1738246850009,3.07385,3253.3,3253.2,0.05902245]
[1738246850222,3.07385,3253.3,3252.9,0.55]
[1738246850409,3.07385,3253.3,3253.2,0.05885063]
[1738246850604,0.70154334,3253.3,3252.2,0.8326]
[1738246850808,6.14798,3253.1,3251.8,0.61905661]
[1738246851119,3.07452,3252.6,3252.0,0.55]
[1738246851320,0.03843122,3253.0,3251.8,0.0075]
[1738246851321,6.14828,3253.0,3252.3,3.62466]
[1738246851524,0.8093,3253.3,3252.5,0.55]
[1738246851737,0.8093,3253.3,3251.8,0.0075]
[1738246851738,3.07424,3252.9,3252.2,3.07477]
[1738246851937,3.07424,3252.9,3252.3,0.55]
[1738246852137,3.07437,3252.7,3252.3,0.55]
[1738246852350,3.07437,3252.7,3251.9,3.07508]
[1738246852351,3.07398,3253.2,3252.6,0.55]
[1738246852580,3.074,3253.1,3252.6,0.55]
[1738246852706,3.07398,3253.2,3252.6,3.62438]
[1738246853040,3.07391,3253.2,3252.6,7.449007]
[1738246853203,3.07391,3253.2,3252.6,4.374617]
[1738246853411,0.812,3253.7,3252.6,1.300247]
[1738246853647,3.07357,3253.6,3252.9,3.07409]
[1738246853832,3.07365,3253.5,3253.0,0.55]
[1738246854012,0.812,3253.7,3253.0,0.60508094]
[1738246854208,3.07385,3253.3,3253.0,0.60508094]
[1738246855143,3.07367,3253.5,3253.0,0.60508094]
[1738246855760,3.88545,3253.7,3253.0,0.60508094]
[1738246856140,3.88545,3253.7,3253.1,3.07393]
[1738246856343,3.07326,3253.9,3253.2,0.55]
[1738246856544,3.07326,3253.9,3253.2,0.60499677]
[1738246856711,3.07348,3253.7,3253.2,0.05499677]
[1738246857066,3.07348,3253.7,3253.2,0.60499677]
[1738246857067,3.07357,3253.6,3253.2,0.60499677]
[1738246859864,3.07328,3253.9,3253.2,0.60499677]
[1738246860011,3.07343,3253.7,3253.2,0.60499677]
[1738246860217,3.07342,3253.7,3253.2,0.60499677]
[1738246860415,0.03841968,3254.0,3253.4,0.8121]
[1738246860660,3.07287,3254.3,3253.6,3.07346]
[1738246860853,3.07287,3254.3,3253.4,0.8121]
[1738246860854,3.07287,3254.3,3253.7,3.07341]